fUST/lending_fUST_20250804
["ID","MTS","AMOUNT","RATE_DAILY","PERIOD"]
[377223197,1754303443750,-460.0,0.00035517,2]
[377223198,1754303443760,-460.0,0.00035517,2]
[377223199,1754303443771,-564.58996918,0.00035517,2]
[377223200,1754303443781,-500.0,0.00035521,5]
[377223201,1754303443792,-524.56619231,0.00035521,5]
[377223202,1754303443803,-2949.43158728,0.00035521,33]
[377223203,1754303443813,-18984.0630823,0.00035527,3]
[377223204,1754303443822,-9115.20843645,0.00035527,3]
[377223205,1754303443833,-1302.84,0.00035527,2]
[377223206,1754303443842,-1463.59,0.00035527,2]
[377223207,1754303443852,-4744.6,0.00035527,2]
[377223208,1754303443861,-989.06,0.00035527,2]
[377223209,1754303443871,-345.66840108,0.00035527,2]
[377223210,1754303443880,-12509.66,0.00035527,2]
[377223211,1754303443889,-1630.43,0.00035537,2]
[377223212,1754303443899,-708.75,0.00035537,2]
[377223213,1754303443908,-520.83,0.00035537,2]
[377223214,1754303443918,-460.0,0.00035537,2]
[377223215,1754303443928,-7973.24,0.00035537,2]
[377223216,1754303443937,-460.0,0.00035537,2]
[377223217,1754303443947,-1196.17,0.00035537,2]
[377223218,1754303443956,-698.03,0.00035537,2]
[377223219,1754303443965,-1745.85,0.00035537,2]
[377223220,1754303443975,-151.0,0.00035537,14]
[377223221,1754303443985,-1756.77,0.00035537,2]
[377223222,1754303443996,-259.809258,0.00035537,14]
[377223223,1754303444006,-259.809258,0.00035537,14]
[377223224,1754303444016,-734.96,0.00035537,2]
[377223225,1754303444025,-1702.98,0.00035537,2]
[377223226,1754303444035,-2284.04,0.00035537,2]
[377223227,1754303444045,-460.0,0.00035537,2]
[377223228,1754303444054,-886.1,0.00035537,2]
[377223229,1754303444064,-6859.16,0.00035616,120]
[377223230,1754303444073,-2949.43158728,0.00035728,33]
[377223231,1754303444083,-9115.20843645,0.00035741,3]
[377223232,1754303444093,-553.125426,0.00035742,14]
[377223233,1754303444102,-553.125426,0.00035742,14]
[377223234,1754303444112,-460.0,0.00035751,2]
[377223235,1754303444121,-220.10330573,0.00035751,2]
[377223236,1754303444130,-497.90675315,0.00035751,2]
[377223237,1754303444140,-460.0,0.00035751,2]
[377223238,1754303444149,-742.96,0.00035751,2]
[377223239,1754303444158,-567.94,0.00035751,2]
[377223240,1754303444168,-460.0,0.00035751,2]
[377223241,1754303444177,-472.19115773,0.00035751,2]
[377223242,1754303444186,-460.0,0.00035751,2]
[377223243,1754303444195,-643.41,0.00035751,2]
[377223244,1754303444206,-460.0,0.00035751,2]
[377223245,1754303444215,-460.0,0.00035751,2]
[377223246,1754303444225,-1105.59,0.00035751,2]
[377223247,1754303444234,-1163.89,0.00035751,2]
[377223248,1754303444244,-460.0,0.00035751,2]
[377223249,1754303444253,-460.0,0.00035751,2]
[377223250,1754303444262,-460.0,0.00035751,2]
[377223251,1754303444272,-460.0,0.00035751,2]
[377223252,1754303444281,-805.32,0.00035751,2]
[377223253,1754303444290,-460.0,0.00035751,2]
[377223254,1754303444300,-460.0,0.00035751,2]
[377223255,1754303444309,-460.0,0.00035751,2]
[377223256,1754303444319,-17736.97,0.00035751,2]
[377223257,1754303444328,-886.63,0.00035751,2]
[377223258,1754303444337,-460.0,0.00035751,2]
[377223259,1754303444346,-675.43,0.00035751,2]
[377223260,1754303444356,-917.98,0.00035751,2]
[377223261,1754303444365,-1081.86,0.00035751,2]
[377223262,1754303444374,-9115.20843645,0.00035751,3]
[377223263,1754303444383,-9115.20843645,0.00035752,3]
[377223264,1754303444392,-152.209555,0.00035752,14]
[377223265,1754303444402,-151.0,0.00035752,14]
[377223266,1754303444411,-151.0,0.00035752,14]
[377223267,1754303444421,-151.0,0.00035752,14]
[377223268,1754303444431,-151.0,0.00035752,14]
[377223269,1754303444440,-153.759418,0.00035752,14]
[377223270,1754303444449,-259.809258,0.00035752,14]
[377223271,1754303444459,-259.809258,0.00035752,14]
[377223272,1754303444468,-842.05743881,0.00035753,3]
[377223273,1754303444478,-9115.20843645,0.00035753,3]
[377223274,1754303444488,-460.0,0.00035758,2]
[377223275,1754303444498,-460.0,0.00035758,2]
[377223276,1754303444508,-460.0,0.00035758,2]
[377223277,1754303444518,-784.53,0.00035758,2]
[377223278,1754303444527,-1988.39,0.00035758,2]
[377223279,1754303444537,-1848.23,0.00035758,2]
[377223280,1754303444548,-1051.73,0.00035758,2]
[377223281,1754303444557,-672.94,0.00035758,2]
[377223282,1754303444567,-460.0,0.00035758,2]
[377223283,1754303444577,-460.0,0.00035758,2]
[377223284,1754303444586,-768.23,0.00035758,2]
[377223285,1754303444595,-259.809258,0.00035758,14]
[377223286,1754303444605,-828.61,0.00035758,2]
[377223287,1754303444614,-259.809258,0.00035758,14]
[377223288,1754303444624,-1432.89,0.00035758,2]
[377223289,1754303444633,-460.0,0.00035758,2]
[377223290,1754303444643,-1114.04,0.00035758,2]
[377223291,1754303444653,-671.32,0.00035758,2]
[377223292,1754303444662,-1829.3,0.00035758,2]
[377223293,1754303444671,-1084.05,0.00035758,2]
[377223294,1754303444680,-462.06423606,0.00035759,2]
[377223295,1754303444799,-460.0,0.00035759,2]
[377223296,1754303444811,-537.22434244,0.00035761,2]
[377223297,1754303444820,-817.04,0.00035761,2]
[377223298,1754303444829,-460.0,0.00035761,2]
[377223299,1754303444839,-460.0,0.00035761,2]
[377223300,1754303444848,-460.0,0.00035761,2]
[377223301,1754303444857,-658.32,0.00035761,2]
[377223302,1754303444867,-460.0,0.00035761,2]
[377223303,1754303444876,-467.99659535,0.00035761,2]
[377223304,1754303444886,-488.29,0.00035761,2]
[377223305,1754303444896,-387.81685737,0.00035761,2]
[377223306,1754303444905,-460.0,0.00035761,2]
[377223307,1754303444915,-460.0,0.00035761,2]
[377223308,1754303444924,-460.0,0.00035761,2]
[377223309,1754303444934,-460.0,0.00035761,2]
[377223310,1754303444943,-460.0,0.00035761,2]
[377223311,1754303444952,-460.0,0.00035761,2]
[377223312,1754303444962,-460.0,0.00035761,2]
[377223313,1754303444971,-460.0,0.00035761,2]
[377223314,1754303444980,-379.16261929,0.00035761,2]
[377223315,1754303444990,-460.0,0.00035761,2]
[377223316,1754303445000,-460.0,0.00035761,2]
[377223317,1754303445009,-461.6433624,0.00035761,2]
[377223318,1754303445018,-460.0,0.00035761,2]
[377223319,1754303445028,-460.0,0.00035761,2]
[377223320,1754303445037,-460.0,0.00035761,2]
[377223321,1754303445046,-460.0,0.00035761,2]
[377223322,1754303445056,-463.6596394,0.00035761,2]
[377223323,1754303445065,-462.06511446,0.00035761,2]
[377223324,1754303445075,-237.00439927,0.00035761,2]
[377223325,1754303445084,-460.0,0.00035761,2]
[377223326,1754303445093,-317.16495895,0.00035761,2]
[377223327,1754303445102,-988.51,0.00035761,2]
[377223328,1754303445111,-431.46562204,0.00035761,2]
[377223329,1754303445121,-460.0,0.00035761,2]
[377223330,1754303445131,-460.0,0.00035761,2]
[377223331,1754303445140,-460.0,0.00035761,2]
[377223332,1754303445150,-460.0,0.00035761,2]
[377223333,1754303445159,-460.0,0.00035761,2]
[377223334,1754303445168,-460.0,0.00035761,2]
[377223335,1754303445177,-460.0,0.00035761,2]
[377223336,1754303445187,-532.94,0.00035761,2]
[377223337,1754303445196,-309.14403618,0.00035761,2]
[377223338,1754303445206,-460.0,0.00035761,2]
[377223339,1754303445215,-460.0,0.00035761,2]
[377223340,1754303445224,-460.0,0.00035761,2]
[377223341,1754303445233,-460.0,0.00035761,2]
[377223342,1754303445243,-460.0,0.00035761,2]
[377223343,1754303445252,-460.0,0.00035761,2]
[377223344,1754303445261,-460.0,0.00035761,2]
[377223345,1754303445270,-460.0,0.00035761,2]
[377223346,1754303445280,-460.0,0.00035761,2]
[377223347,1754303445289,-669.54,0.00035761,2]
[377223348,1754303445298,-460.0,0.00035761,2]
[377223349,1754303445308,-500.0,0.00035761,2]
[377223350,1754303445317,-460.0,0.00035761,2]
[377223351,1754303445326,-553.125426,0.00035761,14]
[377223352,1754303445335,-553.125426,0.00035761,14]
[377223353,1754303445344,-460.0,0.00035761,2]
[377223354,1754303445353,-460.0,0.00035761,2]
[377223355,1754303445363,-460.0,0.00035761,2]
[377223356,1754303445372,-460.0,0.00035761,2]
[377223357,1754303445381,-2434.32,0.00035761,2]
[377223358,1754303445390,-1790.38,0.00035761,2]
[377223359,1754303445399,-385.48514091,0.00035761,2]
[377223360,1754303445409,-460.0,0.00035761,2]
[377223361,1754303445419,-1017.87,0.00035761,2]
[377223362,1754303445428,-892.82,0.00035761,2]
[377223363,1754303445438,-460.0,0.00035761,2]
[377223364,1754303445447,-480.62445239,0.00035761,2]
[377223365,1754303445456,-1673.54,0.00035761,2]
[377223366,1754303445466,-1347.64,0.00035761,2]
[377223367,1754303445475,-460.0,0.00035761,2]
[377223368,1754303445485,-499.24235485,0.00035761,2]
[377223369,1754303445495,-507.16,0.00035761,2]
[377223370,1754303445504,-462.22366267,0.00035761,2]
[377223371,1754303445513,-460.0,0.00035761,2]
[377223372,1754303445523,-460.0,0.00035761,2]
[377223373,1754303445532,-460.0,0.00035761,2]
[377223374,1754303445541,-460.0,0.00035761,2]
[377223375,1754303445550,-460.0,0.00035761,2]
[377223376,1754303445560,-460.0,0.00035761,2]
[377223377,1754303445569,-460.0,0.00035761,2]
[377223378,1754303445579,-2659.51,0.00035761,2]
[377223379,1754303445588,-465.14594053,0.00035761,2]
[377223380,1754303445597,-460.0,0.00035761,2]
[377223381,1754303445606,-1282.94,0.00035761,2]
[377223382,1754303445615,-547.39,0.00035761,2]
[377223383,1754303445624,-460.0,0.00035761,2]
[377223384,1754303445634,-151.0,0.00035762,14]
[377223385,1754303445644,-151.0,0.00035762,14]
[377223386,1754303445653,-151.0,0.00035762,14]
[377223387,1754303445663,-151.0,0.00035762,14]
[377223388,1754303445672,-151.0,0.00035762,14]
[377223389,1754303445681,-16517.47,0.00035762,2]
[377223390,1754303445690,-1323.01,0.00035762,2]
[377223391,1754303445700,-7476.02,0.00035762,2]
[377223392,1754303445709,-259.809258,0.00035762,14]
[377223393,1754303445723,-259.809258,0.00035762,14]
[377223394,1754303445733,-460.0,0.00035762,2]
[377223395,1754303445742,-3933.54,0.00035762,2]
[377223396,1754303445752,-150.5,0.00035763,120]
[377223397,1754303445763,-151.0,0.00035763,14]
[377223398,1754303445773,-460.0,0.00035763,2]
[377223399,1754303445783,-2128.75,0.00035763,2]
[377223400,1754303445792,-151.0,0.00035763,14]
[377223401,1754303445803,-460.0,0.00035763,2]
[377223402,1754303445812,-196.849906,0.00035763,14]
[377223403,1754303445822,-2479.48,0.00035763,2]
[377223404,1754303445831,-460.0,0.00035763,2]
[377223405,1754303445842,-1021.41,0.00035763,2]
[377223406,1754303445851,-460.0,0.00035763,2]
[377223407,1754303445860,-460.0,0.00035763,2]
[377223408,1754303445869,-826.45,0.00035763,2]
[377223409,1754303445878,-460.0,0.00035763,2]
[377223410,1754303445888,-3088.17,0.00035763,2]
[377223411,1754303445900,-460.0,0.00035763,2]
[377223412,1754303445911,-475.07,0.00035763,2]
[377223413,1754303445920,-460.0,0.00035763,2]
[377223414,1754303445929,-694.91,0.00035763,2]
[377223415,1754303445939,-1226.35,0.00035763,2]
[377223416,1754303445949,-460.0,0.00035763,2]
[377223417,1754303445959,-1313.4,0.00035763,2]
[377223418,1754303445969,-460.0,0.00035763,2]
[377223419,1754303445979,-460.0,0.00035763,2]
[377223420,1754303445989,-151.0,0.00035763,14]
[377223421,1754303445999,-1976.52,0.00035763,2]
[377223422,1754303446008,-151.0,0.00035763,14]
[377223423,1754303446018,-760.55,0.00035763,2]
[377223424,1754303446027,-460.0,0.00035763,2]
[377223425,1754303446037,-460.0,0.00035763,2]
[377223426,1754303446046,-1919.9,0.00035763,2]
[377223427,1754303446056,-460.0,0.00035763,2]
[377223428,1754303446065,-460.0,0.00035763,2]
[377223429,1754303446075,-1982.17,0.00035763,2]
[377223430,1754303446085,-460.0,0.00035763,2]
[377223431,1754303446094,-460.0,0.00035763,2]
[377223432,1754303446104,-859.86,0.00035763,2]
[377223433,1754303446113,-460.0,0.00035763,2]
[377223434,1754303446123,-460.0,0.00035763,2]
[377223435,1754303446132,-460.0,0.00035763,2]
[377223436,1754303446142,-847.55,0.00035763,2]
[377223437,1754303446151,-153.68352605,0.00035763,2]
[377223438,1754303446161,-460.0,0.00035763,2]
[377223439,1754303446170,-534.64,0.00035763,2]
[377223440,1754303446180,-553.125426,0.00035763,14]
[377223441,1754303446189,-460.0,0.00035763,2]
[377223442,1754303446198,-553.125426,0.00035763,14]
[377223443,1754303446208,-460.0,0.00035763,2]
[377223444,1754303446217,-530.99,0.00035763,2]
[377223445,1754303446226,-1893.38,0.00035763,2]
[377223446,1754303446235,-1421.8,0.00035763,2]
[377223447,1754303446245,-1103.48,0.00035763,2]
[377223448,1754303446254,-460.0,0.00035763,2]
[377223449,1754303446264,-500.0,0.00035763,2]
[377223450,1754303446273,-460.0,0.00035763,2]
[377223451,1754303446283,-259.809258,0.00035763,14]
[377223452,1754303446293,-259.809263,0.00035763,14]
[377223453,1754303446302,-460.0,0.00035763,2]
[377223454,1754303446311,-619.57,0.00035763,2]
[377223455,1754303446320,-1920.5,0.00035763,2]
[377223456,1754303446329,-780.86,0.00035763,2]
[377223457,1754303446339,-1241.24,0.00035773,2]
[377223458,1754303446348,-728.2,0.00035773,2]
[377223459,1754303446357,-5667.12,0.00035773,2]
[377223460,1754303446367,-460.0,0.00035773,2]
[377223461,1754303446376,-154.441478,0.00035773,14]
[377223462,1754303446385,-1081.47,0.00035773,2]
[377223463,1754303446395,-6359.95,0.00035773,2]
[377223464,1754303446404,-368.83927821,0.00035773,2]
[377223465,1754303446414,-759.74,0.00035773,2]
[377223466,1754303446423,-460.0,0.00035773,2]
[377223467,1754303446433,-460.0,0.00035773,2]
[377223468,1754303446444,-151.0,0.00035773,14]
[377223469,1754303446453,-703.44,0.00035773,2]
[377223470,1754303446463,-151.0,0.00035773,14]
[377223471,1754303446472,-1634.51,0.00035773,2]
[377223472,1754303446481,-463.65191568,0.00035773,2]
[377223473,1754303446491,-865.36,0.00035773,2]
[377223474,1754303446500,-151.0,0.00035773,14]
[377223475,1754303446509,-460.0,0.00035773,2]
[377223476,1754303446518,-714.63,0.00035773,2]
[377223477,1754303446529,-2914.88,0.00035773,2]
[377223478,1754303446538,-553.125426,0.00035773,14]
[377223479,1754303446548,-553.125426,0.00035773,14]
[377223480,1754303446557,-153.701308,0.00035773,14]
[377223481,1754303446567,-471.27780237,0.00035773,2]
[377223482,1754303446576,-460.0,0.00035773,2]
[377223483,1754303446585,-460.0,0.00035791,2]
[377223484,1754303446594,-460.0,0.00035791,2]
[377223485,1754303446603,-2808.4,0.000358,7]
[377223486,1754303446614,-1302.84,0.00035801,2]
[377223487,1754303446624,-1463.59,0.00035801,2]
[377223488,1754303446633,-4744.6,0.00035801,2]
[377223489,1754303446642,-989.06,0.00035801,2]
[377223491,1754303446651,-12509.66,0.00035801,2]
[377223492,1754303446660,-1630.43,0.00035811,2]
[377223493,1754303446670,-708.75,0.00035811,2]
[377223495,1754303446679,-520.83,0.00035811,2]
[377223496,1754303446689,-460.0,0.00035811,2]
[377223497,1754303446698,-7973.24,0.00035811,2]
[377223498,1754303446707,-460.0,0.00035811,2]
[377223499,1754303446718,-1196.17,0.00035811,2]
[377223500,1754303446734,-698.03,0.00035811,2]
[377223501,1754303446744,-1745.85,0.00035811,2]
[377223502,1754303446754,-1756.77,0.00035811,2]
[377223503,1754303446764,-734.96,0.00035811,2]
[377223504,1754303446774,-1702.98,0.00035811,2]
[377223505,1754303446783,-2284.04,0.00035811,2]
[377223506,1754303446793,-460.0,0.00035811,2]
[377223507,1754303446804,-886.1,0.00035811,2]
[377223508,1754303446813,-160.0,0.00035814,2]
[377223509,1754303446823,-959.73,0.00035888,2]
[377223510,1754303446832,-151.0,0.000359,14]
[377223511,1754303446842,-151.0,0.000359,14]
[377223512,1754303446851,-151.0,0.000359,14]
[377223513,1754303446860,-151.0,0.000359,14]
[377223514,1754303446869,-10742.84605401,0.00035934,2]
[377223515,1754303446878,-2949.43158728,0.00035934,33]
[377223516,1754303446888,-151.0,0.0003595,14]
[377223517,1754303446897,-151.0,0.0003595,14]
[377223518,1754303446907,-155.19386,0.0003595,14]
[377223519,1754303446917,-151.0,0.0003595,14]
[377223520,1754303446926,-553.125426,0.0003595,14]
[377223521,1754303446936,-553.125426,0.0003595,14]
[377223522,1754303447095,-151.0,0.0003596,14]
[377223523,1754303447106,-237.80551,0.0003596,14]
[377223524,1754303447116,-237.80551,0.0003596,14]
[377223525,1754303447126,-151.0,0.0003596,14]
[377223526,1754303447135,-462.405396,0.0003596,2]
[377223527,1754303447145,-460.0,0.0003596,2]
[377223528,1754303447155,-460.0,0.0003596,2]
[377223529,1754303447165,-466.03409821,0.0003596,2]
[377223530,1754303447174,-456.71783582,0.0003596,2]
[377223531,1754303447184,-1022.593667,0.0003596,14]
[377223532,1754303447194,-1022.593667,0.0003596,14]
[377223533,1754303447203,-460.0,0.0003596,2]
[377223534,1754303447212,-460.0,0.0003596,2]
[377223535,1754303447221,-460.0,0.0003596,2]
[377223536,1754303447231,-151.0,0.0003598,14]
[377223537,1754303447244,-151.0,0.0003598,14]
[377223538,1754303447254,-553.125426,0.0003598,14]
[377223539,1754303447263,-553.125426,0.0003598,14]
[377223540,1754303447273,-151.0,0.0003599,14]
[377223541,1754303447283,-151.0,0.0003599,14]
[377223542,1754303447293,-2000.0,0.00035996,7]
[377223543,1754303447302,-29253.45,0.00036,14]
[377223544,1754303447312,-502.16831024,0.00036021,5]
[377223545,1754303447321,-1000.0,0.00036021,5]
[377223546,1754303447331,-389.01225488,0.00036021,5]
[377223547,1754303447341,-1000.0,0.00036021,5]
[377223548,1754303447350,-1000.0,0.00036021,5]
[377223549,1754303447359,-1000.0,0.00036021,5]
[377223550,1754303447368,-504.55421228,0.00036021,5]
[377223551,1754303447377,-503.33346352,0.00036021,5]
[377223552,1754303447386,-1000.0,0.00036021,5]
[377223553,1754303447396,-1000.0,0.00036021,5]
[377223554,1754303447406,-1000.0,0.00036021,5]
[377223555,1754303447416,-1000.0,0.00036021,5]
[377223556,1754303447425,-1000.0,0.00036021,2]
[377223557,1754303447434,-1000.0,0.00036021,5]
[377223558,1754303447444,-481.58022864,0.00036025,2]
[377223559,1754303447453,-461.85439765,0.00036025,2]
[377223560,1754303447463,-742.96,0.00036025,2]
[377223561,1754303447472,-567.94,0.00036025,2]
[377223562,1754303447482,-460.0,0.00036025,2]
[377223563,1754303447492,-460.0,0.00036025,2]
[377223564,1754303447501,-643.41,0.00036025,2]
[377223565,1754303447511,-460.0,0.00036025,2]
[377223566,1754303447520,-460.0,0.00036025,2]
[377223567,1754303447529,-1105.59,0.00036025,2]
[377223568,1754303447538,-553.125426,0.00036025,14]
[377223569,1754303447548,-553.125426,0.00036025,14]
[377223570,1754303447557,-1163.89,0.00036025,2]
[377223571,1754303447566,-460.0,0.00036025,2]
[377223572,1754303447576,-460.0,0.00036025,2]
[377223573,1754303447585,-460.0,0.00036025,2]
[377223574,1754303447599,-805.32,0.00036025,2]
[377223575,1754303447609,-460.0,0.00036025,2]
[377223576,1754303447619,-460.0,0.00036025,2]
[377223577,1754303447628,-460.0,0.00036025,2]
[377223578,1754303447638,-17736.97,0.00036025,2]
[377223579,1754303447648,-886.63,0.00036025,2]
[377223580,1754303447658,-460.0,0.00036025,2]
[377223581,1754303447667,-675.43,0.00036025,2]
[377223582,1754303447677,-917.98,0.00036025,2]
[377223583,1754303447687,-1081.86,0.00036025,2]
[377223584,1754303447697,-151.0,0.00036026,14]
[377223585,1754303447706,-197.317515,0.00036026,14]
[377223586,1754303447716,-197.317515,0.00036026,14]
[377223587,1754303447730,-460.0,0.00036032,2]
[377223588,1754303447740,-460.0,0.00036032,2]
[377223589,1754303447750,-460.0,0.00036032,2]
[377223590,1754303447760,-784.53,0.00036032,2]
[377223591,1754303447771,-1988.39,0.00036032,2]
[377223592,1754303447780,-1848.23,0.00036032,2]
[377223593,1754303447790,-1051.73,0.00036032,2]
[377223594,1754303447800,-672.94,0.00036032,2]
[377223595,1754303447811,-460.0,0.00036032,2]
[377223596,1754303447821,-460.0,0.00036032,2]
[377223597,1754303447831,-768.23,0.00036032,2]
[377223598,1754303447841,-828.61,0.00036032,2]
[377223599,1754303447850,-1432.89,0.00036032,2]
[377223600,1754303447860,-460.0,0.00036032,2]
[377223601,1754303447870,-1114.04,0.00036032,2]
[377223602,1754303447880,-671.32,0.00036032,2]
[377223603,1754303447890,-1829.3,0.00036032,2]
[377223604,1754303447900,-1084.05,0.00036032,2]
[377223605,1754303447909,-460.0,0.00036033,2]
[377223606,1754303447919,-817.04,0.00036035,2]
[377223607,1754303447929,-460.0,0.00036035,2]
[377223608,1754303447938,-460.0,0.00036035,2]
[377223609,1754303447948,-460.0,0.00036035,2]
[377223610,1754303447957,-658.32,0.00036035,2]
[377223611,1754303447967,-460.0,0.00036035,2]
[377223612,1754303447976,-488.29,0.00036035,2]
[377223613,1754303447987,-460.0,0.00036035,2]
[377223614,1754303447997,-460.0,0.00036035,2]
[377223615,1754303448008,-467.01581858,0.00036035,2]
[377223616,1754303448018,-290.57340762,0.00036035,2]
[377223617,1754303448027,-460.0,0.00036035,2]
[377223618,1754303448036,-460.0,0.00036035,2]
[377223619,1754303448046,-276.717682,0.00036035,14]
[377223620,1754303448055,-460.0,0.00036035,2]
[377223621,1754303448065,-460.0,0.00036035,2]
[377223622,1754303448074,-460.0,0.00036035,2]
[377223623,1754303448084,-460.0,0.00036035,2]
[377223625,1754303448093,-460.0,0.00036035,2]
[377223627,1754303448103,-460.0,0.00036035,2]
[377223628,1754303448112,-460.0,0.00036035,2]
[377223629,1754303448121,-151.0,0.00036035,14]
[377223630,1754303448131,-988.51,0.00036035,2]
[377223631,1754303448140,-462.94326011,0.00036035,2]
[377223632,1754303448149,-153.81182,0.00036035,14]
[377223633,1754303448159,-460.0,0.00036035,2]
[377223634,1754303448169,-245.08484851,0.00036035,2]
[377223635,1754303448179,-460.0,0.00036035,2]
[377223636,1754303448188,-460.0,0.00036035,2]
[377223637,1754303448197,-172.38578614,0.00036035,2]
[377223638,1754303448206,-460.0,0.00036035,2]
[377223639,1754303448215,-532.94,0.00036035,2]
[377223641,1754303448227,-151.0,0.00036035,14]
[377223643,1754303448236,-151.0,0.00036035,14]
[377223645,1754303448246,-460.0,0.00036035,2]
[377223646,1754303448255,-460.0,0.00036035,2]
[377223648,1754303448264,-460.0,0.00036035,2]
[377223649,1754303448273,-460.0,0.00036035,2]
[377223650,1754303448282,-460.0,0.00036035,2]
[377223651,1754303448291,-540.3817594,0.00036035,2]
[377223652,1754303448301,-460.0,0.00036035,2]
[377223653,1754303448310,-460.0,0.00036035,2]
[377223654,1754303448320,-669.54,0.00036035,2]
[377223655,1754303448329,-151.0,0.00036035,14]
[377223656,1754303448338,-460.0,0.00036035,2]
[377223657,1754303448347,-500.0,0.00036035,2]
[377223658,1754303448356,-460.0,0.00036035,2]
[377223659,1754303448366,-553.125426,0.00036035,14]
[377223660,1754303448375,-553.125432,0.00036035,14]
[377223661,1754303448384,-467.46524095,0.00036035,2]
[377223662,1754303448393,-466.35820989,0.00036035,2]
[377223663,1754303448402,-460.0,0.00036035,2]
[377223665,1754303448411,-460.0,0.00036035,2]
[377223666,1754303448420,-2434.32,0.00036035,2]
[377223668,1754303448430,-1790.38,0.00036035,2]
[377223670,1754303448439,-460.0,0.00036035,2]
[377223672,1754303448448,-1017.87,0.00036035,2]
[377223674,1754303448458,-892.82,0.00036035,2]
[377223675,1754303448467,-460.0,0.00036035,2]
[377223677,1754303448477,-1673.54,0.00036035,2]
[377223679,1754303448486,-1347.64,0.00036035,2]
[377223681,1754303448495,-465.14362087,0.00036035,2]
[377223683,1754303448505,-507.16,0.00036035,2]
[377223684,1754303448515,-460.0,0.00036035,2]
[377223685,1754303448524,-460.0,0.00036035,2]
[377223686,1754303448533,-460.0,0.00036035,2]
[377223687,1754303448542,-460.0,0.00036035,2]
[377223688,1754303448552,-460.0,0.00036035,2]
[377223689,1754303448561,-463.91335734,0.00036035,2]
[377223690,1754303448571,-465.54893334,0.00036035,2]
[377223691,1754303448580,-2659.51,0.00036035,2]
[377223692,1754303448590,-463.70608863,0.00036035,2]
[377223693,1754303448599,-1282.94,0.00036035,2]
[377223694,1754303448609,-547.39,0.00036035,2]
[377223696,1754303448618,-561.61352261,0.00036035,2]
[377223698,1754303448627,-151.0,0.00036036,14]
[377223700,1754303448637,-155.431919,0.00036036,14]
[377223702,1754303448647,-154.993004,0.00036036,14]
[377223703,1754303448656,-500.0,0.00036036,2]
[377223705,1754303448666,-16517.47,0.00036036,2]
[377223706,1754303448681,-1323.01,0.00036036,2]
[377223707,1754303448690,-7476.02,0.00036036,2]
[377223708,1754303448700,-460.0,0.00036036,2]
[377223709,1754303448709,-3933.54,0.00036036,2]
[377223710,1754303448721,-460.0,0.00036037,2]
[377223711,1754303448731,-2128.75,0.00036037,2]
[377223712,1754303448740,-151.0,0.00036037,14]
[377223713,1754303448749,-460.0,0.00036037,2]
[377223714,1754303448758,-2479.48,0.00036037,2]
[377223715,1754303448768,-460.0,0.00036037,2]
[377223716,1754303448777,-1021.41,0.00036037,2]
[377223717,1754303448787,-460.0,0.00036037,2]
[377223718,1754303448796,-826.45,0.00036037,2]